bitfinex-derivatives/quotes_BTCF0:USTF0_20250402
["timestamp","ask_amount","ask_price","bid_price","bid_amount"]
[1743585363404,0.33047319,85253.0,85252.0,0.00017592]
[1743585363709,0.1173265,85239.0,85238.0,0.3608]
[1743585363908,0.1179665,85239.0,85238.0,0.4787679]
[1743585364111,0.24333194,85239.0,85238.0,0.36144]
[1743585364609,0.31786161,85239.0,85238.0,0.00064]
[1743585364802,0.1173348,85233.0,85232.0,0.1873339]
[1743585365002,0.00816967,85233.0,85232.0,0.305308]
[1743585365208,0.13678524,85233.0,85232.0,0.305308]
[1743585365419,0.13742524,85233.0,85232.0,0.305308]
[1743585365606,0.25476004,85233.0,85232.0,0.305308]
[1743585365914,0.25476004,85233.0,85232.0,0.1879739]
[1743585366117,0.25476004,85233.0,85232.0,0.07064]
[1743585366407,0.25476004,85233.0,85232.0,0.1879762]
[1743585366611,0.13742524,85233.0,85232.0,0.1879762]
[1743585367002,0.00752967,85233.0,85232.0,0.1879762]
[1743585367208,0.12486447,85233.0,85232.0,0.07064]
[1743585367414,0.2583772,85233.0,85232.0,0.07064]
[1743585368106,0.3890772,85233.0,85232.0,0.00064]
[1743585368304,0.4239772,85233.0,85232.0,0.00064]
[1743585369711,0.4239772,85233.0,85224.0,0.0656]
[1743585369712,0.1173458,85225.0,85224.0,0.0656]
[1743585370010,0.1173458,85225.0,85224.0,0.1371]
[1743585370212,0.1173486,85223.0,85222.0,0.00046936]
[1743585370410,0.11794861,85223.0,85222.0,0.00046936]
[1743585370619,0.29481643,85223.0,85222.0,0.00046936]
[1743585370824,0.3608,85252.0,85231.0,0.0586685]
[1743585371003,0.17493621,85254.0,85246.0,0.1173169]
[1743585371204,0.15848867,85261.0,85260.0,0.1172976]
[1743585371404,0.27638498,85261.0,85260.0,0.1181376]
[1743585371610,0.29350148,85261.0,85260.0,0.00084]
[1743585371809,0.46944788,85261.0,85258.0,0.1969495]
[1743585372010,0.0686,85260.0,85259.0,0.117299]
[1743585372306,0.06952,85260.0,85259.0,0.118219]
[1743585372620,0.2039328,85260.0,85259.0,0.256019]
[1743585372812,0.1353328,85260.0,85259.0,0.256019]
[1743585373815,0.1344128,85260.0,85259.0,0.256019]
[1743585374322,0.1172966,85261.0,85260.0,0.1172976]
[1743585374519,0.1181366,85261.0,85260.0,0.2502376]
[1743585374722,0.25101256,85261.0,85260.0,0.2502376]
[1743585375117,0.32091256,85261.0,85260.0,0.2502376]
[1743585375614,0.32091256,85261.0,85260.0,0.00084]
[1743585375814,0.1173086,85252.0,85242.0,0.3608]
[1743585376022,0.11790861,85252.0,85251.0,0.11748592]
[1743585376319,0.25157823,85252.0,85251.0,0.00077592]
[1743585376623,0.25157823,85252.0,85251.0,0.00017592]
[1743585376812,0.25157823,85252.0,85251.0,0.00077592]
[1743585377018,0.25157823,85252.0,85251.0,0.11808592]
[1743585377725,0.25157823,85252.0,85251.0,0.18378592]
[1743585378225,0.13426963,85252.0,85251.0,0.25238592]
[1743585378422,0.00060001,85252.0,85251.0,0.61318592]
[1743585378627,0.0586495,85259.0,85258.0,0.117299]
[1743585378628,0.1172999,85259.0,85258.0,0.117299]
[1743585378823,0.11789991,85259.0,85258.0,0.117899]
[1743585379125,0.376395,85259.0,85258.0,0.117899]
[1743585379323,0.3763941,85259.0,85258.0,0.117899]
[1743585379716,0.3763941,85259.0,85258.0,0.258699]
[1743585380523,0.3763941,85259.0,85251.0,0.36097592]
[1743585380524,0.1173086,85252.0,85251.0,0.00017592]
[1743585380822,0.4788686,85252.0,85251.0,0.00085592]
[1743585381129,0.61457316,85252.0,85251.0,0.00017592]
[1743585381625,0.56516456,85252.0,85251.0,0.11748592]
[1743585381826,0.68247316,85252.0,85251.0,0.11748592]
[1743585382126,0.68247316,85252.0,85251.0,0.11812592]
[1743585382324,0.13646456,85252.0,85251.0,0.25042592]
[1743585382533,0.0679,85262.0,85260.0,0.1172976]
[1743585382727,0.00076,85261.0,85260.0,0.1172976]
[1743585383029,0.0004,85263.0,85262.0,0.1172949]
[1743585383217,0.1184535,85263.0,85262.0,0.1178949]
[1743585383417,0.25117804,85263.0,85262.0,0.1178949]
[1743585383622,0.13388454,85263.0,85262.0,0.1178949]
[1743585383825,0.13312454,85263.0,85262.0,0.1178949]
[1743585384430,0.13388454,85263.0,85262.0,0.1178949]
[1743585385223,0.00017592,85268.0,85267.0,0.117288]
[1743585385423,0.00093592,85268.0,85267.0,0.478688]
[1743585385629,0.00017592,85268.0,85267.0,0.478688]
[1743585385927,0.00017592,85268.0,85267.0,0.616088]
[1743585386322,0.11746252,85268.0,85267.0,0.616088]
[1743585386522,0.11822252,85268.0,85267.0,0.616088]
[1743585386822,0.61152463,85268.0,85267.0,0.0006]
[1743585387124,0.1172894,85266.0,85265.0,0.1172902]
[1743585387332,0.1180494,85266.0,85265.0,0.1179702]
[1743585387527,0.25055151,85266.0,85265.0,0.1179702]
[1743585387729,0.13326211,85266.0,85265.0,0.1179702]
[1743585387921,0.00076,85266.0,85265.0,0.5447702]
[1743585388121,0.24435301,85293.0,85265.0,0.91088]
[1743585388330,0.24499301,85293.0,85292.0,0.1172536]
[1743585388630,0.6681379,85303.0,85292.0,0.1172536]
[1743585388631,0.04790714,85332.0,85295.0,0.3334]
[1743585388839,0.0658,85365.0,85331.0,0.7216]
[1743585389128,0.3608,85384.0,85366.0,0.0585754]
[1743585389322,0.3608,85384.0,85370.0,0.4779465]
[1743585389525,0.37319983,85371.0,85370.0,0.3608]
[1743585389725,0.68379979,85371.0,85362.0,0.0001757]
[1743585389931,0.1171561,85363.0,85362.0,0.1173321]
[1743585390324,0.24490116,85363.0,85362.0,0.1173321]
[1743585391430,0.24490116,85363.0,85362.0,0.0001757]
[1743585391431,0.54490116,85363.0,85362.0,0.0001757]
[1743585391633,0.90570116,85363.0,85362.0,0.0001757]
[1743585392718,0.90570116,85363.0,85334.0,0.00046874]
[1743585392719,0.0585795,85361.0,85342.0,0.1356]
[1743585392932,0.0585795,85361.0,85334.0,0.00046874]
[1743585392933,0.1171945,85335.0,85334.0,0.11766324]
[1743585393129,0.0585963,85337.0,85336.0,0.1171932]
[1743585393759,0.1828493,85337.0,85336.0,0.1171932]
[1743585394164,0.0001757,85345.0,85344.0,0.1171822]
[1743585394658,0.0001757,85345.0,85344.0,0.4779822]
[1743585394847,0.0698,85353.0,85352.0,0.1171712]
[1743585394848,0.2455594,85353.0,85352.0,0.1171712]
[1743585395154,0.2463994,85353.0,85352.0,0.1180112]
[1743585395452,0.37500325,85353.0,85352.0,0.1180112]
[1743585395643,0.67500325,85353.0,85352.0,0.1180112]
[1743585395841,0.67500325,85353.0,85352.0,0.1171712]
[1743585396234,0.55782895,85353.0,85352.0,0.1171712]
[1743585396544,0.55782895,85353.0,85352.0,0.1180112]
[1743585398033,0.46400878,85353.0,85352.0,0.00084]
[1743585398236,0.46508879,85353.0,85352.0,0.00084]
[1743585399098,0.1171794,85347.0,85346.0,0.1171787]
[1743585399259,0.1171794,85347.0,85346.0,0.1851787]
[1743585399459,0.1171794,85347.0,85346.0,0.1862587]
[1743585399760,0.24840242,85347.0,85346.0,0.1862587]
[1743585400161,0.24948243,85347.0,85346.0,0.1862587]
[1743585400353,0.00331888,85347.0,85346.0,0.1862587]
[1743585400559,0.11941827,85347.0,85346.0,0.1862594]
[1743585400850,0.12001828,85347.0,85346.0,0.1862594]
[1743585401267,0.5858978,85346.0,85306.0,0.3334]
[1743585401455,0.7216,85329.0,85302.0,0.00046892]
[1743585401759,0.3608,85313.0,85312.0,0.1172261]
[1743585402146,0.31822662,85313.0,85312.0,0.1179861]
[1743585402360,0.43545142,85313.0,85312.0,0.1179861]
[1743585402657,0.43469142,85313.0,85312.0,0.1172261]
[1743585404931,0.43469142,85313.0,85294.0,0.08968]
[1743585404932,0.1172358,85305.0,85294.0,0.08968]
[1743585405134,0.1172358,85305.0,85286.0,0.00046901]
[1743585405135,0.1172358,85305.0,85298.0,0.0694]
[1743585405334,0.24498912,85305.0,85291.0,0.058627]
[1743585405639,0.24498912,85305.0,85297.0,0.3608]
[1743585405640,0.60578912,85305.0,85297.0,0.3608]
[1743585406250,0.60578912,85305.0,85293.0,0.1172509]
[1743585406531,0.60578912,85305.0,85291.0,0.1172536]
[1743585406739,0.60578912,85305.0,85295.0,0.1172489]
[1743585407040,0.60578912,85305.0,85304.0,0.11741292]
[1743585407346,0.60638913,85305.0,85304.0,0.00017582]
[1743585407746,0.67888913,85305.0,85304.0,0.00017582]
[1743585408343,0.67888913,85305.0,85304.0,0.11741292]
[1743585408546,0.67888913,85305.0,85304.0,0.00101582]
[1743585409149,0.67888913,85305.0,85304.0,0.00017582]
[1743585409349,0.1172564,85290.0,85289.0,0.00175852]
[1743585409539,0.1172564,85290.0,85289.0,0.11901622]
[1743585409846,0.1172605,85288.0,85287.0,0.1172596]
[1743585410145,0.1172605,85287.0,85286.0,0.11773041]
[1743585410344,0.1899605,85287.0,85286.0,0.00046901]
[1743585410544,0.32112114,85287.0,85286.0,0.00046901]
[1743585410852,0.39202114,85287.0,85286.0,0.00046901]
[1743585412645,0.14567975,85287.0,85286.0,0.00046901]
[1743585412847,0.26294025,85287.0,85286.0,0.00046901]
[1743585414240,0.62374025,85287.0,85286.0,1e-08]
[1743585415149,0.62434026,85287.0,85286.0,1e-08]
[1743585415548,0.77434026,85287.0,85286.0,1e-08]
[1743585416245,0.62434026,85287.0,85286.0,1e-08]
[1743585417546,0.77434026,85287.0,85286.0,1e-08]
[1743585418547,0.62434026,85287.0,85286.0,1e-08]
[1743585419050,0.71278026,85287.0,85286.0,1e-08]
[1743585419945,0.62434026,85287.0,85286.0,1e-08]
[1743585420345,0.71258026,85287.0,85286.0,1e-08]
[1743585421950,0.1172825,85271.0,85270.0,0.0004691]
[1743585422153,0.1179625,85271.0,85270.0,0.0004691]
[1743585422451,0.25215105,85271.0,85270.0,0.0004691]
[1743585422949,0.38805105,85271.0,85270.0,0.0004691]
[1743585423151,0.39664264,85271.0,85270.0,0.0004691]
[1743585424254,0.1172963,85261.0,85260.0,0.002]
[1743585424448,0.4787363,85261.0,85260.0,0.002]
[1743585424650,0.61260184,85261.0,85260.0,0.00276]
[1743585424847,0.61260184,85261.0,85260.0,0.002]
[1743585425151,0.61260184,85261.0,85260.0,0.00276]
[1743585425359,0.61260184,85261.0,85260.0,0.002]
[1743585425360,0.75830184,85261.0,85260.0,0.002]
[1743585425749,0.84618184,85261.0,85260.0,0.002]
[1743585425959,0.0586568,85249.0,85242.0,0.27604118]
[1743585426256,0.1173183,85245.0,85244.0,0.0681]
[1743585426457,0.1180783,85245.0,85244.0,0.06894]
[1743585426658,0.3254112,85245.0,85244.0,0.1862596]
[1743585426965,0.2531112,85245.0,85244.0,0.06894]
[1743585427653,0.2531112,85245.0,85244.0,0.13754]
[1743585427850,0.2531112,85245.0,85244.0,0.06894]
[1743585428248,0.2531112,85245.0,85244.0,0.00084]
[1743585428552,0.1173251,85240.0,85239.0,0.0711]
[1743585428752,0.1173251,85240.0,85222.0,0.39101249]
[1743585428753,0.1173486,85223.0,85222.0,0.39101249]
[1743585429065,0.1182686,85223.0,85222.0,0.05974366]
[1743585429259,0.25072947,85223.0,85222.0,0.00106936]
[1743585429648,0.25072947,85223.0,85222.0,0.11841926]
[1743585429855,0.25072947,85223.0,85222.0,0.00106936]
[1743585430362,0.3328736,85223.0,85222.0,0.00106936]
[1743585431262,0.23890175,85223.0,85222.0,0.18581926]
[1743585431454,0.23958175,85223.0,85222.0,0.06846936]
[1743585431763,0.23958175,85223.0,85222.0,0.00046936]
[1743585431960,0.23958175,85223.0,85222.0,0.00114936]
[1743585432161,0.23958175,85223.0,85222.0,0.00046936]
[1743585432356,0.32718175,85223.0,85222.0,0.00046936]
[1743585433765,0.08064133,85223.0,85222.0,0.00046936]
[1743585433953,0.19862993,85223.0,85222.0,0.00046936]
[1743585434265,0.1173582,85216.0,85215.0,0.002]
[1743585434566,0.4789582,85216.0,85215.0,0.0028]
[1743585434769,0.60104963,85216.0,85215.0,0.002]
[1743585435569,0.48369143,85216.0,85215.0,0.1201196]
[1743585435868,0.12289143,85216.0,85215.0,0.1201196]
[1743585436167,0.12289143,85216.0,85215.0,0.5536196]
[1743585436369,0.12209143,85216.0,85215.0,0.5536196]
[1743585436771,0.0587529,85225.0,85215.0,0.5536196]
[1743585436772,8e-05,85228.0,85216.0,0.0586789]
[1743585437066,0.204601,85243.0,85242.0,0.1173224]
[1743585437253,0.118401,85243.0,85242.0,0.1183224]
[1743585437454,0.24996593,85243.0,85242.0,0.1183224]
[1743585438561,0.13264493,85243.0,85242.0,0.1183224]
[1743585438864,0.24996593,85243.0,85242.0,0.1183224]
[1743585439266,0.13264493,85243.0,85242.0,0.1183224]
[1743585439470,0.24996593,85243.0,85242.0,0.1183224]
[1743585439665,0.2586913,85243.0,85242.0,0.1183224]
[1743585439967,0.2586913,85243.0,85242.0,0.001]
[1743585440471,0.1173238,85241.0,85240.0,0.1415]
[1743585440670,0.1173238,85241.0,85240.0,0.14258]
[1743585440671,0.1184038,85241.0,85240.0,0.14258]
[1743585440856,0.24898398,85241.0,85240.0,0.0682]
[1743585442779,0.24898398,85241.0,85240.0,0.0692]
[1743585443072,0.24898398,85241.0,85240.0,0.0682]
[1743585443463,0.31628398,85241.0,85240.0,0.0682]
[1743585443663,0.117332,85235.0,85234.0,0.00017593]
[1743585443870,0.118012,85235.0,85234.0,0.00017593]
[1743585444061,0.2419558,85235.0,85234.0,0.00017593]
[1743585444772,0.2419558,85235.0,85234.0,0.07131593]
[1743585445170,0.2419558,85235.0,85234.0,0.00121593]
[1743585445368,0.3092558,85235.0,85234.0,0.00017593]
[1743585445575,0.3767558,85235.0,85234.0,0.00017593]
[1743585447367,0.1173513,85221.0,85220.0,0.0715]
[1743585447676,0.4791513,85221.0,85220.0,0.001]
[1743585447880,0.60352132,85221.0,85220.0,0.001]
[1743585448370,0.74312132,85221.0,85220.0,0.001]
[1743585449676,0.5670307,85221.0,85219.0,0.27604118]
[1743585449874,0.1173527,85220.0,85219.0,0.27604118]
[1743585450278,0.4814022,85220.0,85219.0,0.27704118]
[1743585450474,0.4803222,85220.0,85219.0,0.27604118]
[1743585450874,0.1173582,85216.0,85215.0,0.002]
[1743585451067,0.12925376,85216.0,85215.0,0.002]
[1743585451267,0.1173609,85214.0,85213.0,0.34472672]
[1743585451470,0.1173609,85214.0,85201.0,0.0718]
[1743585451471,0.1173678,85209.0,85201.0,0.073]
[1743585451880,0.1173706,85207.0,85202.0,0.34542739]
[1743585452072,0.5649306,85207.0,85202.0,0.34542739]
[1743585452275,0.69825985,85207.0,85202.0,0.34542739]
[1743585452469,0.84385985,85207.0,85202.0,0.34542739]
[1743585455479,0.84385985,85207.0,85201.0,0.1412]
[1743585455682,0.84449985,85207.0,85201.0,0.1412]
[1743585455885,0.84449985,85207.0,85206.0,0.00146945]
[1743585456076,0.84449985,85207.0,85206.0,0.00046945]
[1743585456277,0.84449985,85207.0,85206.0,0.00146945]
[1743585456981,0.84449985,85207.0,85206.0,0.00046945]
[1743585457182,0.84449985,85207.0,85206.0,0.00146945]
[1743585457385,0.84449985,85207.0,85206.0,0.00046945]
[1743585457768,0.84449985,85207.0,85201.0,0.1412]
[1743585457769,0.1173775,85202.0,85201.0,0.1412]
[1743585457974,0.1180575,85202.0,85201.0,0.073]
[1743585458171,0.25225663,85202.0,85201.0,0.07404]
[1743585458573,0.25225663,85202.0,85201.0,0.1914189]
[1743585458784,0.25225663,85202.0,85201.0,0.2690189]
[1743585459772,0.25225663,85202.0,85201.0,0.15164]
[1743585461082,0.25225663,85202.0,85201.0,0.2690189]
[1743585461279,0.25225663,85202.0,85201.0,0.15164]
[1743585461480,0.13487913,85202.0,85201.0,0.2690189]
[1743585461884,0.13419913,85202.0,85201.0,0.2690189]
[1743585462185,0.13519913,85202.0,85201.0,0.2690189]
[1743585462383,0.001,85202.0,85201.0,0.2690189]
[1743585462579,0.12379785,85202.0,85201.0,0.2690189]
[1743585462787,0.12279785,85202.0,85201.0,0.2690189]
[1743585462986,0.1173749,85204.0,85203.0,0.0586873]
[1743585463289,0.1184549,85204.0,85203.0,0.1373673]
[1743585463478,0.25075701,85204.0,85203.0,0.2074673]
[1743585464887,0.25075701,85204.0,85203.0,0.14878]
[1743585465381,0.32325701,85204.0,85203.0,0.07118]
[1743585465577,0.32325701,85204.0,85203.0,0.0701]
[1743585466281,0.39475701,85204.0,85203.0,0.0701]
[1743585466683,0.48083701,85204.0,85203.0,0.0701]
[1743585467173,0.48083701,85204.0,85203.0,0.0711]
[1743585467788,0.48083701,85204.0,85203.0,0.0701]
[1743585469093,0.058692,85198.0,85191.0,0.0768]
[1743585469389,0.1173913,85192.0,85191.0,0.0778]
[1743585469588,0.1173913,85192.0,85191.0,0.1951926]
[1743585469779,0.24778179,85192.0,85191.0,0.1951926]
[1743585470181,0.24778179,85192.0,85191.0,0.0778]
[1743585471085,0.24778179,85192.0,85191.0,0.001]
[1743585471286,0.39538179,85192.0,85191.0,0.001]
[1743585471679,0.48094179,85192.0,85191.0,0.001]
[1743585472187,0.34231532,85192.0,85191.0,0.001]
[1743585472398,0.49441532,85192.0,85191.0,0.0704]
[1743585476088,0.49441532,85192.0,85191.0,0.0714]
[1743585476295,0.49441532,85192.0,85191.0,0.0704]
[1743585476697,0.40885532,85192.0,85191.0,0.1428]
[1743585476888,0.49389532,85192.0,85191.0,0.1438]
[1743585478187,0.49389532,85192.0,85191.0,0.1428]
[1743585478499,0.49373532,85192.0,85191.0,0.14384]
[1743585478698,0.49373532,85192.0,85191.0,0.1428]
[1743585478899,0.49373532,85192.0,85191.0,0.1438]
[1743585479097,0.22424402,85192.0,85191.0,0.2611926]
[1743585479798,0.25675532,85192.0,85191.0,0.2611926]
[1743585479990,0.34163532,85192.0,85191.0,0.1438]
[1743585480204,0.48743532,85192.0,85191.0,0.0704]
[1743585480389,0.40255532,85192.0,85191.0,0.0704]
[1743585480584,0.48739532,85192.0,85191.0,0.0704]
[1743585480790,0.48739532,85192.0,85191.0,0.0714]
[1743585481306,0.48739532,85192.0,85191.0,0.0704]
[1743585481692,0.48739532,85192.0,85191.0,0.0714]
[1743585481890,0.48739532,85192.0,85191.0,0.0704]
[1743585482201,0.0587001,85186.0,85182.0,0.00176073]
[1743585482401,0.4782037,85183.0,85182.0,0.00176073]
[1743585482588,0.4788837,85183.0,85182.0,0.00276073]
[1743585482790,0.60931842,85183.0,85182.0,0.00276073]
[1743585483196,0.1174064,85181.0,85180.0,0.0705]
[1743585483400,0.11800641,85181.0,85180.0,0.07154]
[1743585483591,0.24523617,85181.0,85180.0,0.07154]
[1743585484099,0.32253617,85181.0,85180.0,0.07154]
[1743585484702,0.32253617,85181.0,85174.0,0.00046962]
[1743585484703,0.0587052,85179.0,85174.0,0.00046962]
[1743585484891,0.20512977,85181.0,85155.0,0.41273156]
[1743585484892,0.1174243,85168.0,85155.0,0.41273156]
[1743585485093,0.4782326,85162.0,85155.0,0.53017366]
[1743585485287,0.5636726,85162.0,85161.0,0.34757951]
[1743585485492,0.68730332,85162.0,85161.0,0.34757951]
[1743585486097,0.76050332,85162.0,85161.0,0.34757951]
[1743585486403,0.0587257,85149.0,85130.0,0.33186883]
[1743585486601,0.0587257,85149.0,85146.0,0.0753]
[1743585486602,0.4782533,85147.0,85146.0,0.0753]
[1743585486794,0.47913331,85147.0,85146.0,0.0753]
[1743585486995,0.49294259,85147.0,85146.0,0.0753]
[1743585487199,0.49294259,85147.0,85146.0,0.1927547]
[1743585487405,0.49294259,85147.0,85146.0,0.1933947]
[1743585487699,0.50176731,85147.0,85146.0,0.1933947]
[1743585487904,0.14096731,85147.0,85146.0,0.1933947]
[1743585488400,0.1400873,85147.0,85146.0,0.1933947]
[1743585488703,0.1410073,85147.0,85146.0,0.2681947]
[1743585488897,0.08484,85160.0,85147.0,0.058726]
[1743585489092,0.11761974,85154.0,85153.0,0.117445]
[1743585489401,0.11845974,85154.0,85153.0,0.118045]
[1743585489600,0.25294665,85154.0,85153.0,0.118045]
[1743585489794,0.25294665,85154.0,85153.0,0.270545]
[1743585489996,0.26170692,85154.0,85153.0,0.1531]
[1743585490195,0.26170692,85154.0,85153.0,0.270545]
[1743585490407,0.26170692,85154.0,85153.0,0.1531]
[1743585490591,0.26170692,85154.0,85153.0,0.270545]
[1743585490903,0.33640692,85154.0,85153.0,0.0783]
[1743585491094,0.33640692,85154.0,85153.0,0.0777]
[1743585491292,0.33640692,85154.0,85153.0,0.07834]
[1743585491697,0.33640692,85154.0,85153.0,0.195785]
[1743585492002,0.33640692,85154.0,85153.0,0.07834]
[1743585492396,0.26170692,85154.0,85153.0,0.195785]
[1743585493102,0.26170692,85154.0,85153.0,0.273985]
[1743585493697,0.40820692,85154.0,85153.0,0.273985]
[1743585494804,0.40820692,85154.0,85153.0,0.07834]
[1743585495600,0.40820692,85154.0,85153.0,0.195785]
[1743585495804,0.34646692,85154.0,85153.0,0.195785]
[1743585497306,0.26170692,85154.0,85153.0,0.195785]
[1743585501217,0.13550305,85154.0,85153.0,0.195785]
[1743585501509,0.25294665,85154.0,85153.0,0.195785]
[1743585502106,0.25294665,85154.0,85153.0,0.07834]
[1743585502407,0.26169347,85154.0,85153.0,0.07834]
[1743585502807,0.41659347,85154.0,85153.0,0.07834]
[1743585503012,0.41659347,85154.0,85153.0,0.0783]
[1743585503506,0.77739347,85154.0,85153.0,0.0783]
[1743585503711,0.77739347,85154.0,85153.0,0.0006]
[1743585503908,0.1761751,85150.0,85149.0,0.1174494]
[1743585504210,0.1174505,85149.0,85148.0,0.0725]
[1743585504506,0.2682905,85149.0,85148.0,0.07338]
[1743585504712,0.39369236,85149.0,85148.0,0.07338]
[1743585505009,0.39369236,85149.0,85148.0,0.1908319]
[1743585505207,0.39369236,85149.0,85148.0,0.2621319]
[1743585506303,0.39369236,85149.0,85148.0,0.14468]
[1743585506501,0.39369236,85149.0,85148.0,0.0725]
[1743585506810,0.39369236,85149.0,85144.0,0.1174574]
[1743585506811,0.0587259,85148.0,85144.0,0.1174574]
[1743585507015,0.1174588,85145.0,85144.0,0.1180574]
[1743585507210,0.11833881,85145.0,85144.0,0.2355125]
[1743585507404,0.24332561,85145.0,85144.0,0.2355125]
[1743585507714,0.32092561,85145.0,85144.0,0.2355125]
[1743585507903,0.39752561,85145.0,85144.0,0.2355125]
[1743585509814,0.39752561,85145.0,85144.0,0.1180551]
[1743585511413,0.24332561,85145.0,85144.0,0.1180551]
[1743585511911,0.34865759,85145.0,85144.0,0.1888551]
[1743585512418,0.42675759,85145.0,85144.0,0.1888551]
[1743585512714,0.51145759,85145.0,85144.0,0.1888551]
[1743585514310,0.40612561,85145.0,85144.0,0.1888551]
[1743585515917,0.40612561,85145.0,85144.0,0.1180551]
[1743585516117,0.40612561,85145.0,85144.0,0.0006]
[1743585516313,0.40612561,85145.0,85144.0,0.1180574]
[1743585517510,0.40612561,85145.0,85144.0,0.0006]
[1743585518113,0.46323841,85145.0,85144.0,0.0006]
[1743585519514,0.1174588,85143.0,85142.0,0.1102294]
[1743585519711,0.11849881,85143.0,85142.0,0.1112694]
[1743585519915,0.41211564,85143.0,85142.0,0.1112694]
[1743585520220,0.41211564,85143.0,85142.0,0.1185002]
[1743585521219,0.1762185,85129.0,85127.0,0.33186883]
[1743585521420,0.1762185,85129.0,85128.0,0.1762182]
[1743585521627,0.060099,85129.0,85128.0,0.1762182]
[1743585521926,0.18456982,85129.0,85128.0,0.1768982]
[1743585522225,0.18592982,85129.0,85128.0,0.1768982]
[1743585522416,0.18592982,85129.0,85128.0,0.2578982]
[1743585524819,0.18592982,85129.0,85128.0,0.3351982]
[1743585527427,0.12719082,85129.0,85128.0,0.3351982]
[1743585527929,0.11764504,85137.0,85136.0,0.1174685]
[1743585528126,0.11860325,85137.0,85136.0,0.6367885]
[1743585528324,0.00113615,85137.0,85136.0,0.6367885]
[1743585528523,0.11860325,85137.0,85136.0,0.6367885]
[1743585529532,0.00113615,85137.0,85136.0,0.6367885]
[1743585529732,0.00113615,85137.0,85136.0,0.7106885]
[1743585530436,8e-05,85138.0,85137.0,0.1174671]
[1743585530735,0.22374638,85138.0,85137.0,0.1180671]
[1743585530930,0.10628068,85138.0,85137.0,0.2774671]
[1743585531726,0.10564068,85138.0,85137.0,0.2774671]
[1743585532324,0.10628068,85138.0,85137.0,0.2774671]
[1743585532525,0.10564068,85138.0,85137.0,0.2774671]
[1743585533526,0.10556068,85138.0,85137.0,0.2774671]
[1743585534031,0.22302638,85138.0,85137.0,0.2774671]
[1743585534232,0.10628068,85138.0,85137.0,0.2774671]
[1743585534530,0.23826069,85138.0,85137.0,0.2774671]
[1743585535437,0.35572639,85138.0,85137.0,0.2774671]
[1743585535627,0.43712639,85138.0,85137.0,0.2774671]
[1743585536537,0.43712639,85138.0,85137.0,0.1962671]
[1743585537632,0.50702639,85138.0,85137.0,0.1180671]
[1743585537935,0.40146571,85138.0,85137.0,0.1180671]
[1743585539137,0.40146571,85138.0,85137.0,0.0006]
[1743585539535,0.1174767,85130.0,85129.0,0.23513024]
[1743585539735,0.1181167,85130.0,85129.0,0.23573024]
[1743585539937,0.25184401,85130.0,85129.0,0.23573024]
[1743585540326,0.41014401,85130.0,85129.0,0.05951484]
[1743585540928,0.41014401,85130.0,85129.0,0.00077614]
[1743585541132,0.48004401,85130.0,85129.0,0.00077614]
[1743585541640,0.48004401,85130.0,85126.0,0.00046989]
[1743585541641,0.1174947,85117.0,85116.0,0.27754889]
[1743585541942,0.1184147,85117.0,85116.0,0.27822889]
[1743585542144,0.2413956,85117.0,85116.0,0.27822889]
[1743585542644,0.4061956,85117.0,85116.0,0.27822889]
[1743585543243,0.2887009,85117.0,85116.0,0.39572499]
[1743585543632,0.4061956,85117.0,85116.0,0.36642889]
[1743585543828,0.4061956,85117.0,85116.0,0.27822889]
[1743585544643,0.4061956,85117.0,85116.0,0.39572499]
[1743585545433,0.2887009,85117.0,85116.0,0.39572499]
[1743585545638,0.4061956,85117.0,85116.0,0.39572499]
[1743585546341,0.4760956,85117.0,85116.0,0.39572499]
[1743585546547,0.4760956,85117.0,85116.0,0.1181761]
[1743585547841,0.1938009,85117.0,85116.0,0.1181761]
[1743585548038,0.1938009,85117.0,85116.0,0.5633761]
[1743585548344,0.07082,85117.0,85116.0,0.6479761]
[1743585550242,0.0699,85117.0,85116.0,0.6479761]
[1743585552141,0.06998,85118.0,85117.0,0.1174947]
[1743585552349,0.06998,85118.0,85117.0,0.2824347]
[1743585553249,0.10549996,85125.0,85124.0,0.117485]
[1743585553442,0.10637997,85125.0,85124.0,0.478925]
[1743585553752,0.23175236,85125.0,85124.0,0.478925]
[1743585554048,0.10637997,85125.0,85124.0,0.478925]
[1743585554247,0.10549996,85125.0,85124.0,0.643225]
[1743585554446,0.0587357,85134.0,85133.0,0.1762055]
[1743585554641,0.0597357,85134.0,85133.0,0.1768855]
[1743585554952,0.13363896,85134.0,85133.0,0.1768855]
[1743585555249,0.25111016,85134.0,85133.0,0.1768855]
[1743585556148,0.001,85134.0,85133.0,0.1768855]
[1743585556450,0.1175512,85134.0,85133.0,0.1768855]
[1743585556643,0.24970942,85134.0,85133.0,0.00068]
[1743585557154,0.1762143,85132.0,85131.0,0.1174751]
[1743585557353,0.1174767,85130.0,85129.0,0.0587384]
[1743585557656,0.11835671,85130.0,85129.0,0.0593784]
[1743585557954,0.24552817,85130.0,85129.0,0.0593784]
[1743585558153,0.33002817,85130.0,85129.0,0.0593784]
[1743585558647,0.41272817,85130.0,85129.0,0.0593784]
[1743585559248,0.41272817,85130.0,85129.0,0.00064]
[1743585559451,0.33002817,85130.0,85129.0,0.1181181]
[1743585559949,0.21255147,85130.0,85129.0,0.1181181]
[1743585560152,0.12805147,85130.0,85129.0,0.2029181]
[1743585560347,0.12717146,85130.0,85129.0,0.2029181]
[1743585560545,0.1672,85140.0,85129.0,0.2029181]
[1743585560546,0.1672,85140.0,85139.0,0.1174643]
[1743585560847,0.16812,85140.0,85139.0,0.1181043]
[1743585561049,0.13039109,85140.0,85139.0,0.4789043]
[1743585561239,0.00092,85140.0,85139.0,0.4789043]
[1743585561443,0.00092,85140.0,85139.0,0.6508043]
[1743585561850,0.118383,85140.0,85139.0,0.6508043]
[1743585562550,0.00092,85140.0,85139.0,0.6508043]
[1743585562754,0.00048,85151.0,85140.0,0.117463]
[1743585562954,0.24577464,85158.0,85157.0,0.1174395]
[1743585563251,0.36389395,85158.0,85157.0,0.4789195]
[1743585563753,0.58484081,85158.0,85157.0,0.4789195]
[1743585564054,0.66904081,85158.0,85157.0,0.08718]
[1743585564350,0.1174478,85152.0,85151.0,0.1174464]
[1743585564551,0.11804781,85152.0,85151.0,0.1180464]
[1743585564852,0.42195957,85152.0,85151.0,0.1180464]
[1743585565051,0.13291177,85152.0,85151.0,0.2075464]
[1743585565354,0.13291177,85152.0,85151.0,0.2940464]
[1743585565557,0.00060001,85152.0,85151.0,0.2940464]
[1743585565851,8e-05,85158.0,85157.0,0.1174395]
[1743585566050,0.1174364,85160.0,85159.0,0.1174354]
[1743585566255,0.00060001,85161.0,85160.0,0.1174354]
[1743585566456,0.118114,85161.0,85160.0,0.1181154]
[1743585566656,0.2445146,85161.0,85160.0,0.1181154]
[1743585567953,0.1270806,85161.0,85160.0,0.1181154]